fUST/lending_fUST_20260506
["ID","MTS","AMOUNT","RATE_DAILY","PERIOD"]
[421638840,1778003458000,-500.0,0.00013424,2]
[421638853,1778003458000,-4257.4,0.00013424,2]
[421638845,1778003458000,-500.0,0.00013424,2]
[421638854,1778003458000,-500.0,0.00013424,2]
[421638858,1778003458000,-152.0,8.244e-05,7]
[421638855,1778003458000,-483.14185836,0.00013424,2]
[421638867,1778003458000,-500.0,0.00013424,2]
[421638865,1778003458000,-601.77,0.00013424,2]
[421638866,1778003458000,-785.91,0.00013424,2]
[421638862,1778003458000,-792.79,0.00013424,2]
[421638863,1778003458000,-500.0,0.00013424,2]
[421638868,1778003458000,-587.16,0.00013424,2]
[421638861,1778003458000,-500.0,0.00013424,2]
[421638864,1778003458000,-500.0,0.00013424,2]
[421638856,1778003458000,-16.85814164,0.00013424,2]
[421638850,1778003458000,-613.47,0.00013424,2]
[421638860,1778003458000,-500.0,0.00013424,2]
[421638859,1778003458000,-31.14734534,0.00013424,2]
[421638857,1778003458000,-468.85265466,0.00013424,2]
[421638879,1778003459000,-552.86,0.00013424,2]
[421638872,1778003459000,-1856.52,0.00013424,2]
[421638870,1778003459000,-4054.53,0.00013424,2]
[421638871,1778003459000,-2123.89,0.00013424,2]
[421638874,1778003459000,-500.0,0.00013424,2]
[421638873,1778003459000,-500.0,0.00013424,2]
[421638875,1778003459000,-500.0,0.00013424,2]
[421638876,1778003459000,-1018.33,0.00013424,2]
[421638877,1778003459000,-687.51,0.00013424,2]
[421638878,1778003459000,-500.0,0.00013424,2]
[421638869,1778003459000,-1246.96,0.00013424,2]
[421638882,1778003459000,-500.0,0.00013424,2]
[421638881,1778003459000,-500.0,0.00013424,2]
[421638885,1778003459000,-893.4,0.00013424,2]
[421638883,1778003459000,-395.84876396,0.00013424,2]
[421638886,1778003459000,-1328.28,0.00013424,2]
[421638887,1778003459000,-500.0,0.00013424,2]
[421638884,1778003459000,-1395.50123604,0.00013424,2]
[421638888,1778003459000,-555.12,0.00013424,2]
[421638890,1778003459000,-2306.10951406,0.00013424,2]
[421638891,1778003459000,-115.42048594,0.00013424,2]
[421638889,1778003459000,-500.0,0.00013424,2]
[421638892,1778003459000,-2850.9528307,0.00013424,2]
[421638893,1778003459000,-756.85469116,0.00013424,2]
[421638880,1778003459000,-1492.19,0.00013424,2]
[421638896,1778003645000,5000.0,8.01e-05,2]
[421638897,1778003653000,5000.0,8.01e-05,2]
[421638898,1778003661000,2186.0,8.01e-05,2]
[421638899,1778003669000,446.0,8.01e-05,2]
[421638922,1778004445000,283.4926002,8.01e-05,2]
[421639001,1778004631000,-454.21859992,8.033e-05,2]
[421639022,1778004631000,-300.0,0.00011892,2]
[421639012,1778004631000,-4816.30934304,0.00011891,2]
[421639009,1778004631000,-1200.0,0.0001189,2]
[421639014,1778004631000,-275.0,0.00011891,2]
[421639008,1778004631000,-485.25001743,0.00010033,2]
[421639015,1778004631000,-300.0,0.00011892,2]
[421639018,1778004631000,-300.0,0.00011892,2]
[421639020,1778004631000,-300.0,0.00011892,2]
[421639004,1778004631000,-411.22882833,8.033e-05,2]
[421639025,1778004631000,-300.0,0.00011892,2]
[421639024,1778004631000,-300.0,0.00011892,2]
[421639032,1778004631000,-300.0,0.00011892,2]
[421639035,1778004631000,-300.0,0.00011892,2]
[421639030,1778004631000,-300.0,0.00011892,2]
[421639033,1778004631000,-300.0,0.00011892,2]
[421639006,1778004631000,-533.0,8.033e-05,2]
[421639038,1778004631000,-300.0,0.00011892,2]
[421639028,1778004631000,-300.0,0.00011892,2]
[421639036,1778004631000,-300.0,0.00011892,2]
[421639034,1778004631000,-300.0,0.00011892,2]
[421639037,1778004631000,-300.0,0.00011892,2]
[421639042,1778004632000,-559.27120653,0.00012033,2]
[421639044,1778004632000,-160.0,0.00012066,2]
[421639046,1778004632000,-161.56332863,0.00012066,2]
[421639050,1778004632000,-160.0,0.00012066,2]
[421639052,1778004632000,-2214.0,0.00012109,2]
[421639058,1778004632000,-185.0,0.00012109,2]
[421639054,1778004632000,-646.0,0.00012109,2]
[421639064,1778004632000,-341.17587697,0.00012227,2]
[421639062,1778004632000,-600.0,0.00012129,2]
[421639040,1778004632000,-2687.58851647,0.00011892,2]
[421639048,1778004632000,-160.0,0.00012066,2]
[421639066,1778004632000,-500.0,0.00012227,2]
[421639067,1778004632000,-500.0,0.00012227,2]
[421639069,1778004632000,-4946.77329636,0.00012227,2]
[421639071,1778004632000,-26684.96543834,0.00012228,2]
[421639084,1778004632000,-500.0,0.00012227,2]
[421639086,1778004632000,-5384.55471548,0.00012228,2]
[421639056,1778004632000,-554.0,0.00012109,2]
[421639060,1778004632000,-442.0,0.00012109,2]
[421639139,1778004637000,-359.25426438,0.00012227,2]
[421639140,1778004637000,-140.74573562,0.00012227,2]
[421639171,1778004638000,-500.0,0.00012328,2]
[421639163,1778004638000,-500.0,0.00012328,2]
[421639168,1778004638000,-500.0,0.00012328,2]
[421639169,1778004638000,-166.8169117,0.00012328,2]
[421639167,1778004638000,-500.0,0.00012328,2]
[421639170,1778004638000,-1141.04,0.00012328,2]
[421639183,1778004638000,-500.0,0.00012328,2]
[421639174,1778004638000,-500.0,0.00012328,2]
[421639172,1778004638000,-500.0,0.00012328,2]
[421639175,1778004638000,-500.0,0.00012328,2]
[421639179,1778004638000,-500.0,0.00012328,2]
[421639182,1778004638000,-500.0,0.00012328,2]
[421639176,1778004638000,-500.0,0.00012328,2]
[421639177,1778004638000,-500.0,0.00012328,2]
[421639180,1778004638000,-569.1,0.00012328,2]
[421639178,1778004638000,-500.0,0.00012328,2]
[421639181,1778004638000,-418.79145994,0.00012328,2]
[421639184,1778004638000,-500.0,0.00012328,2]
[421639188,1778004638000,-514.43,0.00012328,2]
[421639187,1778004638000,-500.0,0.00012328,2]
[421639189,1778004638000,-500.0,0.00012328,2]
[421639165,1778004638000,-500.0,0.00012328,2]
[421639166,1778004638000,-500.0,0.00012328,2]
[421639152,1778004638000,-500.0,0.00012227,2]
[421639162,1778004638000,-500.0,0.00012328,2]
[421639141,1778004638000,-500.0,0.00012227,2]
[421639143,1778004638000,-397.4326716,0.00012227,2]
[421639142,1778004638000,-500.0,0.00012227,2]
[421639144,1778004638000,-102.5673284,0.00012227,2]
[421639146,1778004638000,-500.0,0.00012227,2]
[421639156,1778004638000,-425.79162078,0.00012227,2]
[421639157,1778004638000,-500.0,0.00012227,2]
[421639145,1778004638000,-305.95555622,0.00012227,2]
[421639147,1778004638000,-500.0,0.00012227,2]
[421639150,1778004638000,-500.0,0.00012227,2]
[421639196,1778004638000,-500.0,0.00012328,2]
[421639151,1778004638000,-500.0,0.00012227,2]
[421639148,1778004638000,-500.0,0.00012227,2]
[421639153,1778004638000,-500.0,0.00012227,2]
[421639149,1778004638000,-500.0,0.00012227,2]
[421639154,1778004638000,-500.0,0.00012227,2]
[421639155,1778004638000,-500.0,0.00012227,2]
[421639158,1778004638000,-500.0,0.00012227,2]
[421639159,1778004638000,-243855.45761596,0.00012228,2]
[421639161,1778004638000,-155.0,0.00012327,2]
[421639160,1778004638000,-400.797,0.00012321,2]
[421639164,1778004638000,-4988.8418,0.00012328,2]
[421639195,1778004638000,-500.0,0.00012328,2]
[421639173,1778004638000,-500.0,0.00012328,2]
[421639185,1778004638000,-500.0,0.00012328,2]
[421639219,1778004638000,-500.0,0.00012328,2]
[421639218,1778004638000,-670.06,0.00012328,2]
[421639216,1778004638000,-500.0,0.00012328,2]
[421639220,1778004638000,-500.0,0.00012328,2]
[421639223,1778004638000,-500.0,0.00012328,2]
[421639233,1778004638000,-500.0,0.00012328,2]
[421639234,1778004638000,-500.0,0.00012328,2]
[421639224,1778004638000,-500.0,0.00012328,2]
[421639235,1778004638000,-500.0,0.00012328,2]
[421639222,1778004638000,-500.0,0.00012328,2]
[421639217,1778004638000,-512.10367197,0.00012328,2]
[421639225,1778004638000,-500.0,0.00012328,2]
[421639231,1778004638000,-631.37,0.00012328,2]
[421639229,1778004638000,-500.0,0.00012328,2]
[421639228,1778004638000,-726.73,0.00012328,2]
[421639230,1778004638000,-500.0,0.00012328,2]
[421639232,1778004638000,-500.0,0.00012328,2]
[421639236,1778004638000,-1020.86,0.00012328,2]
[421639238,1778004638000,-500.0,0.00012328,2]
[421639237,1778004638000,-500.0,0.00012328,2]
[421639239,1778004638000,-500.0,0.00012328,2]
[421639190,1778004638000,-500.0,0.00012328,2]
[421639227,1778004638000,-500.0,0.00012328,2]
[421639221,1778004638000,-500.0,0.00012328,2]
[421639226,1778004638000,-182.08212405,0.00012328,2]
[421639214,1778004638000,-512.24,0.00012328,2]
[421639192,1778004638000,-500.0,0.00012328,2]
[421639215,1778004638000,-500.0,0.00012328,2]
[421639193,1778004638000,-801.14,0.00012328,2]
[421639186,1778004638000,-537.13767199,0.00012328,2]
[421639191,1778004638000,-500.0,0.00012328,2]
[421639194,1778004638000,-500.0,0.00012328,2]
[421639198,1778004638000,-500.0,0.00012328,2]
[421639208,1778004638000,-500.0,0.00012328,2]
[421639197,1778004638000,-500.0,0.00012328,2]
[421639201,1778004638000,-500.0,0.00012328,2]
[421639209,1778004638000,-198.72585772,0.00012328,2]
[421639202,1778004638000,-500.0,0.00012328,2]
[421639207,1778004638000,-500.0,0.00012328,2]
[421639213,1778004638000,-500.0,0.00012328,2]
[421639199,1778004638000,-1270.66,0.00012328,2]
[421639212,1778004638000,-500.0,0.00012328,2]
[421639210,1778004638000,-560.86,0.00012328,2]
[421639203,1778004638000,-500.0,0.00012328,2]
[421639211,1778004638000,-500.0,0.00012328,2]
[421639205,1778004638000,-500.0,0.00012328,2]
[421639204,1778004638000,-500.0,0.00012328,2]
[421639200,1778004638000,-500.0,0.00012328,2]
[421639206,1778004638000,-500.0,0.00012328,2]
[421639281,1778004639000,-528.63121437,0.00012328,2]
[421639276,1778004639000,-2295.95,0.00012328,2]
[421639278,1778004639000,-1225.99,0.00012328,2]
[421639277,1778004639000,-500.0,0.00012328,2]
[421639288,1778004639000,-666.91,0.00012328,2]
[421639285,1778004639000,-500.0,0.00012328,2]
[421639274,1778004639000,-500.0,0.00012328,2]
[421639279,1778004639000,-674.6,0.00012328,2]
[421639287,1778004639000,-500.0,0.00012328,2]
[421639286,1778004639000,-877.01,0.00012328,2]
[421639284,1778004639000,-500.0,0.00012328,2]
[421639280,1778004639000,-525.22,0.00012328,2]
[421639282,1778004639000,-500.0,0.00012328,2]
[421639297,1778004639000,-500.0,0.00012328,2]
[421639289,1778004639000,-500.0,0.00012328,2]
[421639295,1778004639000,-1762.36,0.00012328,2]
[421639296,1778004639000,-999.82,0.00012328,2]
[421639290,1778004639000,-500.0,0.00012328,2]
[421639291,1778004639000,-500.0,0.00012328,2]
[421639293,1778004639000,-500.59046223,0.00012328,2]
[421639294,1778004639000,-390.13609838,0.00012328,2]
[421639292,1778004639000,-500.0,0.00012328,2]
[421639298,1778004639000,-500.0,0.00012328,2]
[421639300,1778004639000,-500.0,0.00012328,2]
[421639299,1778004639000,-500.0,0.00012328,2]
[421639268,1778004639000,-500.0,0.00012328,2]
[421639301,1778004639000,-500.0,0.00012328,2]
[421639283,1778004639000,-500.0,0.00012328,2]
[421639272,1778004639000,-500.0,0.00012328,2]
[421639247,1778004639000,-474.53605112,0.00012328,2]
[421639265,1778004639000,-1308.67,0.00012328,2]
[421639302,1778004639000,-500.0,0.00012328,2]
[421639244,1778004639000,-500.0,0.00012328,2]
[421639241,1778004639000,-500.0,0.00012328,2]
[421639243,1778004639000,-500.0,0.00012328,2]
[421639240,1778004639000,-648.68636542,0.00012328,2]
[421639242,1778004639000,-500.0,0.00012328,2]
[421639246,1778004639000,-879.89,0.00012328,2]
[421639245,1778004639000,-490.0,0.00012328,2]
[421639249,1778004639000,-500.0,0.00012328,2]
[421639248,1778004639000,-500.0,0.00012328,2]
[421639259,1778004639000,-500.0,0.00012328,2]
[421639251,1778004639000,-500.0,0.00012328,2]
[421639252,1778004639000,-500.0,0.00012328,2]
[421639270,1778004639000,-742.04,0.00012328,2]
[421639254,1778004639000,-509.5,0.00012328,2]
[421639250,1778004639000,-500.0,0.00012328,2]
[421639253,1778004639000,-500.0,0.00012328,2]
[421639256,1778004639000,-500.0,0.00012328,2]
[421639255,1778004639000,-500.0,0.00012328,2]
[421639258,1778004639000,-500.0,0.00012328,2]
[421639260,1778004639000,-500.0,0.00012328,2]
[421639264,1778004639000,-500.0,0.00012328,2]
[421639266,1778004639000,-500.0,0.00012328,2]
[421639263,1778004639000,-476.98533905,0.00012328,2]
[421639261,1778004639000,-579.11,0.00012328,2]
[421639269,1778004639000,-500.0,0.00012328,2]
[421639271,1778004639000,-500.0,0.00012328,2]
[421639262,1778004639000,-500.0,0.00012328,2]
[421639257,1778004639000,-500.0,0.00012328,2]
[421639303,1778004639000,-500.0,0.00012328,2]
[421639267,1778004639000,-500.0,0.00012328,2]
[421639310,1778004639000,-500.0,0.00012328,2]
[421639334,1778004639000,-500.0,0.00012328,2]
[421639344,1778004639000,-500.0,0.00012328,2]
[421639343,1778004639000,-500.0,0.00012328,2]
[421639349,1778004639000,-500.0,0.00012328,2]
[421639350,1778004639000,-500.0,0.00012328,2]
[421639347,1778004639000,-1796.16,0.00012328,2]
[421639354,1778004639000,-500.0,0.00012328,2]
[421639348,1778004639000,-840.22,0.00012328,2]
[421639353,1778004639000,-500.0,0.00012328,2]
[421639355,1778004639000,-684.89,0.00012328,2]
[421639351,1778004639000,-500.0,0.00012328,2]
[421639346,1778004639000,-500.0,0.00012328,2]
[421639352,1778004639000,-500.0,0.00012328,2]
[421639371,1778004639000,-500.0,0.00012328,2]
[421639356,1778004639000,-1565.82,0.00012328,2]
[421639362,1778004639000,-500.0,0.00012328,2]
[421639365,1778004639000,-500.0,0.00012328,2]
[421639359,1778004639000,-500.0,0.00012328,2]
[421639358,1778004639000,-500.0,0.00012328,2]
[421639368,1778004639000,-500.0,0.00012328,2]
[421639360,1778004639000,-500.0,0.00012328,2]
[421639366,1778004639000,-582.31,0.00012328,2]
[421639367,1778004639000,-500.0,0.00012328,2]
[421639361,1778004639000,-564.05132605,0.00012328,2]
[421639364,1778004639000,-500.0,0.00012328,2]
[421639363,1778004639000,-303.40212249,0.00012328,2]
[421639369,1778004639000,-500.0,0.00012328,2]
[421639370,1778004639000,-500.0,0.00012328,2]
[421639357,1778004639000,-500.0,0.00012328,2]
[421639335,1778004639000,-500.0,0.00012328,2]
[421639305,1778004639000,-500.0,0.00012328,2]
[421639329,1778004639000,-500.0,0.00012328,2]
[421639308,1778004639000,-500.0,0.00012328,2]
[421639309,1778004639000,-1004.89,0.00012328,2]
[421639304,1778004639000,-500.0,0.00012328,2]
[421639306,1778004639000,-500.0,0.00012328,2]
[421639307,1778004639000,-500.0,0.00012328,2]
[421639311,1778004639000,-879.25,0.00012328,2]
[421639312,1778004639000,-500.0,0.00012328,2]
[421639313,1778004639000,-500.0,0.00012328,2]
[421639333,1778004639000,-500.0,0.00012328,2]
[421639314,1778004639000,-500.0,0.00012328,2]
[421639318,1778004639000,-500.0,0.00012328,2]
[421639319,1778004639000,-500.0,0.00012328,2]
[421639316,1778004639000,-3436.73,0.00012328,2]
[421639317,1778004639000,-500.0,0.00012328,2]
[421639315,1778004639000,-500.0,0.00012328,2]
[421639320,1778004639000,-500.0,0.00012328,2]
[421639321,1778004639000,-500.0,0.00012328,2]
[421639327,1778004639000,-500.0,0.00012328,2]
[421639330,1778004639000,-500.0,0.00012328,2]
[421639332,1778004639000,-500.0,0.00012328,2]
[421639341,1778004639000,-500.0,0.00012328,2]
[421639339,1778004639000,-500.0,0.00012328,2]
[421639331,1778004639000,-500.0,0.00012328,2]
[421639328,1778004639000,-1561.42,0.00012328,2]
[421639324,1778004639000,-500.0,0.00012328,2]
[421639326,1778004639000,-3599.53,0.00012328,2]
[421639323,1778004639000,-500.0,0.00012328,2]
[421639322,1778004639000,-500.0,0.00012328,2]
[421639325,1778004639000,-679.76,0.00012328,2]
[421639337,1778004639000,-1054.86,0.00012328,2]
[421639418,1778004640000,-500.0,0.00012328,2]
[421639419,1778004640000,-500.0,0.00012328,2]
[421639420,1778004640000,-500.0,0.00012328,2]
[421639417,1778004640000,-500.0,0.00012328,2]
[421639424,1778004640000,-3763.43,0.00012328,2]
[421639414,1778004640000,-500.0,0.00012328,2]
[421639413,1778004640000,-562.31,0.00012328,2]
[421639415,1778004640000,-500.0,0.00012328,2]
[421639404,1778004640000,-596.31,0.00012328,2]
[421639405,1778004640000,-500.0,0.00012328,2]
[421639412,1778004640000,-500.0,0.00012328,2]
[421639425,1778004640000,-500.0,0.00012328,2]
[421639421,1778004640000,-500.0,0.00012328,2]
[421639436,1778004640000,-500.0,0.00012328,2]
[421639423,1778004640000,-500.0,0.00012328,2]
[421639427,1778004640000,-500.0,0.00012328,2]
[421639426,1778004640000,-500.0,0.00012328,2]
[421639432,1778004640000,-541.54,0.00012328,2]
[421639437,1778004640000,-500.0,0.00012328,2]
[421639429,1778004640000,-500.0,0.00012328,2]
[421639433,1778004640000,-500.0,0.00012328,2]
[421639428,1778004640000,-525.49,0.00012328,2]
[421639430,1778004640000,-500.0,0.00012328,2]
[421639438,1778004640000,-1416.43,0.00012328,2]
[421639439,1778004640000,-500.0,0.00012328,2]
[421639435,1778004640000,-500.0,0.00012328,2]
[421639434,1778004640000,-500.0,0.00012328,2]
[421639402,1778004640000,-500.0,0.00012328,2]
[421639416,1778004640000,-500.0,0.00012328,2]
[421639403,1778004640000,-500.0,0.00012328,2]
[421639389,1778004640000,-432.56679435,0.00012328,2]
[421639409,1778004640000,-500.0,0.00012328,2]
[421639441,1778004640000,-500.0,0.00012328,2]
[421639379,1778004640000,-2054.52,0.00012328,2]
[421639373,1778004640000,-500.0,0.00012328,2]
[421639380,1778004640000,-1469.66,0.00012328,2]
[421639375,1778004640000,-500.0,0.00012328,2]
[421639372,1778004640000,-500.0,0.00012328,2]
[421639374,1778004640000,-1817.38,0.00012328,2]
[421639376,1778004640000,-928.84,0.00012328,2]
[421639381,1778004640000,-500.0,0.00012328,2]
[421639377,1778004640000,-618.14,0.00012328,2]
[421639393,1778004640000,-500.0,0.00012328,2]
[421639394,1778004640000,-500.0,0.00012328,2]
[421639385,1778004640000,-664.36,0.00012328,2]
[421639383,1778004640000,-1128.81,0.00012328,2]
[421639396,1778004640000,-3424.85,0.00012328,2]
[421639387,1778004640000,-500.0,0.00012328,2]
[421639391,1778004640000,-500.0,0.00012328,2]
[421639392,1778004640000,-518.70937076,0.00012328,2]
[421639390,1778004640000,-500.0,0.00012328,2]
[421639395,1778004640000,-621.47,0.00012328,2]
[421639397,1778004640000,-500.0,0.00012328,2]
[421639398,1778004640000,-500.0,0.00012328,2]
[421639399,1778004640000,-500.0,0.00012328,2]
[421639400,1778004640000,-500.0,0.00012328,2]
[421639401,1778004640000,-500.0,0.00012328,2]
[421639407,1778004640000,-500.0,0.00012328,2]
[421639410,1778004640000,-500.0,0.00012328,2]
[421639406,1778004640000,-500.0,0.00012328,2]
[421639408,1778004640000,-500.0,0.00012328,2]
[421639411,1778004640000,-564.93243258,0.00012328,2]
[421639378,1778004640000,-758.02,0.00012328,2]
[421639452,1778004640000,-500.0,0.00012328,2]
[421639451,1778004640000,-500.0,0.00012328,2]
[421639470,1778004640000,-500.0,0.00012328,2]
[421639471,1778004640000,-500.0,0.00012328,2]
[421639479,1778004640000,-500.0,0.00012328,2]
[421639480,1778004640000,-1783.56,0.00012328,2]
[421639490,1778004640000,-500.0,0.00012328,2]
[421639484,1778004640000,-500.0,0.00012328,2]
[421639481,1778004640000,-500.0,0.00012328,2]
[421639486,1778004640000,-500.0,0.00012328,2]
[421639485,1778004640000,-507.11,0.00012328,2]
[421639488,1778004640000,-10677.96,0.00012328,2]
[421639483,1778004640000,-500.0,0.00012328,2]
[421639489,1778004640000,-500.0,0.00012328,2]
[421639482,1778004640000,-2259.04,0.00012328,2]
[421639487,1778004640000,-565.55,0.00012328,2]
[421639493,1778004640000,-500.0,0.00012328,2]
[421639502,1778004640000,-500.0,0.00012328,2]
[421639500,1778004640000,-523.35,0.00012328,2]
[421639501,1778004640000,-6107.05,0.00012328,2]
[421639503,1778004640000,-500.0,0.00012328,2]
[421639504,1778004640000,-500.0,0.00012328,2]
[421639492,1778004640000,-500.0,0.00012328,2]
[421639494,1778004640000,-500.0,0.00012328,2]
[421639497,1778004640000,-500.0,0.00012328,2]
[421639499,1778004640000,-1000.0,0.00012328,2]
[421639498,1778004640000,-500.0,0.00012328,2]
[421639496,1778004640000,-9221.94,0.00012328,2]
[421639495,1778004640000,-600.24679708,0.00012328,2]
[421639505,1778004640000,-500.0,0.00012328,2]
[421639453,1778004640000,-500.0,0.00012328,2]
[421639474,1778004640000,-579.84,0.00012328,2]
[421639475,1778004640000,-500.0,0.00012328,2]
[421639491,1778004640000,-500.0,0.00012328,2]
[421639477,1778004640000,-500.0,0.00012328,2]
[421639473,1778004640000,-3762.42,0.00012328,2]
[421639444,1778004640000,-500.0,0.00012328,2]
[421639443,1778004640000,-500.0,0.00012328,2]
[421639442,1778004640000,-500.0,0.00012328,2]
[421639447,1778004640000,-643.42,0.00012328,2]
[421639449,1778004640000,-1498.92,0.00012328,2]
[421639450,1778004640000,-500.0,0.00012328,2]
[421639446,1778004640000,-579.77,0.00012328,2]
[421639445,1778004640000,-376.67567669,0.00012328,2]
[421639448,1778004640000,-500.0,0.00012328,2]
[421639456,1778004640000,-500.0,0.00012328,2]
[421639457,1778004640000,-500.0,0.00012328,2]
[421639454,1778004640000,-658.86,0.00012328,2]
[421639455,1778004640000,-500.0,0.00012328,2]
[421639466,1778004640000,-642.35703999,0.00012328,2]
[421639440,1778004640000,-500.0,0.00012328,2]
[421639465,1778004640000,-1218.98,0.00012328,2]
[421639459,1778004640000,-500.0,0.00012328,2]
[421639472,1778004640000,-500.0,0.00012328,2]
[421639469,1778004640000,-500.0,0.00012328,2]
[421639478,1778004640000,-500.0,0.00012328,2]
[421639467,1778004640000,-759.23,0.00012328,2]
[421639468,1778004640000,-541.0947845,0.00012328,2]
[421639476,1778004640000,-386.12450732,0.00012328,2]
[421639463,1778004640000,-500.0,0.00012328,2]
[421639461,1778004640000,-284.8638696,0.00012328,2]
[421639462,1778004640000,-500.0,0.00012328,2]
[421639460,1778004640000,-500.0,0.00012328,2]
[421639458,1778004640000,-500.0,0.00012328,2]
[421639464,1778004640000,-500.0,0.00012328,2]
[421639548,1778004641000,-500.0,0.00012328,2]
[421639558,1778004641000,-517.28,0.00012328,2]
[421639547,1778004641000,-490.00980483,0.00012328,2]
[421639546,1778004641000,-545.06,0.00012328,2]
[421639543,1778004641000,-3652.63,0.00012328,2]
[421639557,1778004641000,-500.0,0.00012328,2]
[421639539,1778004641000,-500.0,0.00012328,2]
[421639545,1778004641000,-1591.77,0.00012328,2]
[421639535,1778004641000,-500.0,0.00012328,2]
[421639533,1778004641000,-538.40397595,0.00012328,2]
[421639542,1778004641000,-500.0,0.00012328,2]
[421639549,1778004641000,-500.0,0.00012328,2]
[421639541,1778004641000,-500.0,0.00012328,2]
[421639550,1778004641000,-695.77,0.00012328,2]
[421639569,1778004641000,-1019.79,0.00012328,2]
[421639555,1778004641000,-500.0,0.00012328,2]
[421639553,1778004641000,-3950.54,0.00012328,2]
[421639551,1778004641000,-500.0,0.00012328,2]
[421639556,1778004641000,-537.16,0.00012328,2]
[421639554,1778004641000,-1084.0,0.00012328,2]
[421639561,1778004641000,-500.0,0.00012328,2]
[421639564,1778004641000,-500.0,0.00012328,2]
[421639563,1778004641000,-500.0,0.00012328,2]
[421639559,1778004641000,-500.0,0.00012328,2]
[421639562,1778004641000,-6387.43,0.00012328,2]
[421639566,1778004641000,-3128.39,0.00012328,2]
[421639568,1778004641000,-500.0,0.00012328,2]
[421639544,1778004641000,-500.0,0.00012328,2]
[421639552,1778004641000,-561.87,0.00012328,2]
[421639540,1778004641000,-500.0,0.00012328,2]
[421639560,1778004641000,-500.0,0.00012328,2]
[421639538,1778004641000,-926.36,0.00012328,2]
[421639507,1778004641000,-500.0,0.00012328,2]
[421639508,1778004641000,-3053.02,0.00012328,2]
[421639506,1778004641000,-1709.65,0.00012328,2]
[421639509,1778004641000,-500.0,0.00012328,2]
[421639514,1778004641000,-500.0,0.00012328,2]
[421639511,1778004641000,-500.0,0.00012328,2]
[421639515,1778004641000,-500.0,0.00012328,2]
[421639510,1778004641000,-563.91,0.00012328,2]
[421639512,1778004641000,-2915.36,0.00012328,2]
[421639517,1778004641000,-500.0,0.00012328,2]
[421639513,1778004641000,-500.0,0.00012328,2]
[421639516,1778004641000,-500.0,0.00012328,2]
[421639519,1778004641000,-4422.23,0.00012328,2]
[421639531,1778004641000,-500.0,0.00012328,2]
[421639530,1778004641000,-622.95,0.00012328,2]
[421639529,1778004641000,-788.66,0.00012328,2]
[421639521,1778004641000,-516.27,0.00012328,2]
[421639520,1778004641000,-500.0,0.00012328,2]
[421639518,1778004641000,-733.54,0.00012328,2]
[421639522,1778004641000,-627.75,0.00012328,2]
[421639525,1778004641000,-999.31,0.00012328,2]
[421639524,1778004641000,-500.0,0.00012328,2]
[421639527,1778004641000,-3004.92,0.00012328,2]
[421639528,1778004641000,-500.0,0.00012328,2]